fUSD/lending_fUSD_20260630
["ID","MTS","AMOUNT","RATE_DAILY","PERIOD"]
[426737634,1782768657000,-345.7536,0.0003345,2]
[426737633,1782768657000,-300.0,0.0003345,2]
[426737644,1782768657000,-300.0,0.0003345,2]
[426737638,1782768657000,-1807.30940739,0.0003345,2]
[426737635,1782768657000,-300.0,0.0003345,2]
[426737636,1782768657000,-300.0,0.0003345,2]
[426737639,1782768657000,-300.0,0.0003345,2]
[426737645,1782768657000,-307.40260425,0.0003345,2]
[426737637,1782768657000,-954.30228826,0.0003345,2]
[426737642,1782768657000,-311.22255108,0.0003345,2]
[426737640,1782768657000,-300.0,0.0003345,2]
[426737643,1782768657000,-569.01654071,0.0003345,2]
[426737641,1782768657000,-576.43989485,0.0003345,2]
[426737646,1782768657000,-513.95923093,0.0003345,2]
[426737658,1782768657000,-300.0,0.0003345,2]
[426737647,1782768657000,-300.0,0.0003345,2]
[426737657,1782768657000,-300.0,0.0003345,2]
[426737648,1782768657000,-584.66801755,0.0003345,2]
[426737650,1782768657000,-300.0,0.0003345,2]
[426737655,1782768657000,-300.0,0.0003345,2]
[426737649,1782768657000,-454.26701287,0.0003345,2]
[426737654,1782768657000,-446.09705538,0.0003345,2]
[426737656,1782768657000,-1101.0618519,0.0003345,2]
[426737688,1782768657000,-513.95923093,0.0003345,2]
[426737746,1782768657000,-1542.96313972,0.00034209,2]
[426737691,1782768657000,-454.26701287,0.0003345,2]
[426737727,1782768657000,-3651.0,0.00033637,2]
[426737722,1782768657000,-194.0,0.00033592,30]
[426737719,1782768657000,-181.0,0.00033585,30]
[426737729,1782768657000,-211082.0,0.00033676,30]
[426737724,1782768657000,-283.0,0.00033637,2]
[426737730,1782768657000,-319.0,0.00033687,30]
[426737723,1782768657000,-154.46935744,0.00033609,2]
[426737721,1782768657000,-161.0,0.00033585,30]
[426737725,1782768657000,-1278.0,0.00033637,2]
[426737726,1782768657000,-1230.0,0.00033637,2]
[426737731,1782768657000,-501.0,0.00033699,17]
[426737734,1782768657000,-67925.8557847,0.00034,2]
[426737741,1782768657000,-179.50198925,0.00034094,30]
[426737735,1782768657000,-225.16,0.00034,30]
[426737738,1782768657000,-50000.0,0.00034,60]
[426737687,1782768657000,-352.45719778,0.0003345,2]
[426737737,1782768657000,-500.0,0.00034,120]
[426737739,1782768657000,-50000.0,0.00034,14]
[426737740,1782768657000,-154.0,0.00034061,3]
[426737733,1782768657000,-179.50198925,0.0003379,30]
[426737732,1782768657000,-360.99,0.00033702,3]
[426737742,1782768657000,-180.2,0.00034094,13]
[426737743,1782768657000,-180.2,0.00034094,13]
[426737744,1782768657000,-195.98,0.00034094,13]
[426737745,1782768657000,-747.09622848,0.00034161,2]
[426737747,1782768657000,-161.45,0.00034212,120]
[426737748,1782768657000,-951.96,0.00034247,120]
[426737728,1782768657000,-6728.58210777,0.00033652,2]
[426737720,1782768657000,-501.0,0.00033585,30]
[426737736,1782768657000,-300.0,0.00034,2]
[426737715,1782768657000,-232.0,0.00033585,30]
[426737716,1782768657000,-272.0,0.00033585,30]
[426737690,1782768657000,-584.66801755,0.0003345,2]
[426737693,1782768657000,-300.0,0.0003345,2]
[426737692,1782768657000,-300.0,0.0003345,2]
[426737685,1782768657000,-311.22255108,0.0003345,2]
[426737698,1782768657000,-1101.0618519,0.0003345,2]
[426737706,1782768657000,-179.50198925,0.00033486,30]
[426737695,1782768657000,-300.0,0.0003345,2]
[426737697,1782768657000,-300.0,0.0003345,2]
[426737701,1782768657000,-300.0,0.0003345,2]
[426737704,1782768657000,-250.0,0.00033465,7]
[426737703,1782768657000,-250.0,0.00033465,7]
[426737700,1782768657000,-300.0,0.0003345,2]
[426737696,1782768657000,-446.09705538,0.0003345,2]
[426737705,1782768657000,-212.48,0.00033468,4]
[426737714,1782768657000,-204.0,0.00033585,30]
[426737699,1782768657000,-300.0,0.0003345,2]
[426737717,1782768657000,-321.0,0.00033585,30]
[426737713,1782768657000,-616.0,0.00033585,30]
[426737712,1782768657000,-153.0,0.00033585,30]
[426737709,1782768657000,-152.0,0.0003354,5]
[426737689,1782768657000,-300.0,0.0003345,2]
[426737708,1782768657000,-326.59,0.000335,30]
[426737711,1782768657000,-494.0,0.00033549,7]
[426737718,1782768657000,-154.0,0.00033585,30]
[426737710,1782768657000,-225.0,0.00033549,7]
[426737707,1782768657000,-1239.20700929,0.000335,2]
[426737702,1782768657000,-320.38699067,0.0003345,2]
[426737768,1782768658000,-812.0,0.0003449,120]
[426737765,1782768658000,-501.0,0.00034458,18]
[426737769,1782768658000,-747.0,0.0003449,120]
[426737775,1782768658000,-153.0,0.00034585,30]
[426737774,1782768658000,-236.96,0.0003458,60]
[426737767,1782768658000,-747.0,0.0003448,120]
[426737772,1782768658000,-9912.37,0.00034544,60]
[426737773,1782768658000,-154.46935744,0.00034569,2]
[426737771,1782768658000,-208.56,0.00034521,120]
[426737766,1782768658000,-812.0,0.0003448,120]
[426737778,1782768658000,-232.0,0.00034585,30]
[426737777,1782768658000,-204.0,0.00034585,30]
[426737787,1782768658000,-180.2,0.00034642,13]
[426737779,1782768658000,-272.0,0.00034585,30]
[426737770,1782768658000,-326.59,0.000345,30]
[426737781,1782768658000,-154.0,0.00034585,30]
[426737752,1782768658000,-812.0,0.0003428,120]
[426737763,1782768658000,-1500.0,0.000344,7]
[426737788,1782768658000,-521.16,0.00034644,30]
[426737751,1782768658000,-747.0,0.0003428,120]
[426737749,1782768658000,-747.0,0.0003427,120]
[426737750,1782768658000,-812.0,0.0003427,120]
[426737753,1782768658000,-747.0,0.0003429,120]
[426737754,1782768658000,-812.0,0.0003429,120]
[426737757,1782768658000,-747.0,0.0003437,120]
[426737755,1782768658000,-738.70849652,0.0003435,120]
[426737756,1782768658000,-812.0,0.0003437,120]
[426737762,1782768658000,-179.50198925,0.00034399,30]
[426737758,1782768658000,-812.0,0.0003438,120]
[426737761,1782768658000,-747.0,0.0003439,120]
[426737764,1782768658000,-90131.5342886,0.00034413,2]
[426737760,1782768658000,-812.0,0.0003439,120]
[426737759,1782768658000,-747.0,0.0003438,120]
[426737776,1782768658000,-616.0,0.00034585,30]
[426737780,1782768658000,-321.0,0.00034585,30]
[426737803,1782768658000,-248.74,0.00034724,2]
[426737785,1782768658000,-194.0,0.00034592,30]
[426737810,1782768658000,-257.01,0.000348,7]
[426737804,1782768658000,-642.25,0.00034724,2]
[426737809,1782768658000,-1500.0,0.00034795,2]
[426737805,1782768658000,-644.59,0.00034724,2]
[426737807,1782768658000,-151.62,0.00034724,2]
[426737811,1782768658000,-300.0,0.000348,120]
[426737813,1782768658000,-9641.328206,0.00034826,7]
[426737814,1782768658000,-400.01419502,0.00034826,7]
[426737816,1782768658000,-18183.1828941,0.00034826,7]
[426737815,1782768658000,-33025.65263734,0.00034826,7]
[426737817,1782768658000,-676.82098521,0.00034826,7]
[426737818,1782768658000,-358.15101531,0.00034826,7]
[426737819,1782768658000,-229.884109,0.00016438,2]
[426737820,1782768658000,-180.115891,0.00034826,7]
[426737784,1782768658000,-166.0,0.00034585,30]
[426737806,1782768658000,-644.28,0.00034724,2]
[426737812,1782768658000,-73549.30820112,0.00034826,7]
[426737808,1782768658000,-211082.0,0.00034786,30]
[426737801,1782768658000,-248.74,0.00034724,2]
[426737802,1782768658000,-296.89,0.00034724,2]
[426737782,1782768658000,-181.0,0.00034585,30]
[426737786,1782768658000,-180.2,0.00034642,13]
[426737800,1782768658000,-151.0,0.00034724,2]
[426737790,1782768658000,-756.32,0.0003468,120]
[426737789,1782768658000,-813.97,0.0003468,120]
[426737791,1782768658000,-812.0,0.0003469,120]
[426737792,1782768658000,-747.0,0.0003469,120]
[426737783,1782768658000,-501.0,0.00034585,30]
[426737799,1782768658000,-151.0,0.00034724,2]
[426737793,1782768658000,-179.50198925,0.00034703,30]
[426737795,1782768658000,-644.64,0.00034724,2]
[426737794,1782768658000,-359.45,0.00034715,3]
[426737798,1782768658000,-573.86,0.00034724,2]
[426737797,1782768658000,-151.0,0.00034724,2]
[426737796,1782768658000,-573.86,0.00034724,2]
[426737834,1782768659000,-152.0,0.00014824,2]
[426737836,1782768659000,-486.96949518,0.0003345,2]
[426737832,1782768659000,-150.0,0.00032383,2]
[426737831,1782768659000,-706.69534082,0.00034826,7]
[426737828,1782768659000,-300.0,0.0003345,2]
[426737833,1782768659000,-263.56929035,0.0003345,2]
[426737830,1782768659000,-686.125,0.00034826,7]
[426737825,1782768659000,-229.884105,0.00016438,2]
[426737827,1782768659000,-150.0,0.00030841,2]
[426737822,1782768659000,-1593.90160558,0.00015471,2]
[426737826,1782768659000,-150.0,0.00029372,2]
[426737824,1782768659000,-10914.14648894,0.00015471,2]
[426737821,1782768659000,-1019.13739692,0.000149,2]
[426737835,1782768659000,-36.43070965,0.0003345,2]
[426737829,1782768659000,-3428.48859056,0.00034826,7]
[426737837,1782768659000,-150.0,0.00034002,2]
[426737823,1782768659000,-6708.35437044,0.000149,2]
[426737839,1782768659000,-4031.31661201,0.00034826,7]
[426737855,1782768659000,-197777.0035888,0.0003496,2]
[426737852,1782768659000,-9481.81097779,0.00034826,7]
[426737850,1782768659000,-335.58,0.00034826,7]
[426737854,1782768659000,-741.0,0.00034891,7]
[426737849,1782768659000,-273.39362236,0.00034826,7]
[426737846,1782768659000,-14281.65726083,0.00034826,7]
[426737851,1782768659000,-38951.46564155,0.00034826,7]
[426737847,1782768659000,-899.0,0.00014824,2]
[426737848,1782768659000,-15421.38528204,0.00034826,7]
[426737843,1782768659000,-250.0,0.00018322,2]
[426737844,1782768659000,-495.28773916,0.0003345,2]
[426737845,1782768659000,-300.0,0.0003345,2]
[426737842,1782768659000,-200.0,0.00017605,2]
[426737841,1782768659000,-1387.38,0.00034826,7]
[426737840,1782768659000,-5020.26109161,0.00034826,7]
[426737853,1782768659000,-338.0,0.00034891,7]
[426737838,1782768659000,-6955.31020913,0.00034826,7]
[426737859,1782768745000,770.14,0.0002,30]
[426737862,1782769078000,-175.733,0.00012843,2]
[426737863,1782769132000,-199.5,0.00012843,2]
[426737865,1782769185000,-3117.536,0.00012843,2]
[426737866,1782769238000,-151.0,0.00012843,2]
[426737867,1782769291000,-153.0,0.00012843,2]
[426737868,1782769345000,-153.0,0.00012843,2]
[426737869,1782769398000,-150.0,0.00012843,2]
[426737870,1782769452000,-714.3926755,0.00012843,2]
[426737871,1782769464000,-1779.6353245,0.00012843,2]
[426737872,1782769517000,-152.0,0.00012843,2]
[426737873,1782769604000,-172.5634078,0.00012743,2]
[426737874,1782769604000,-168.445108,0.00012743,2]
[426737877,1782769604000,-153.0,0.00012843,2]
[426737878,1782769604000,-151.0,0.00012843,2]
[426737876,1782769604000,-152.0,0.00012843,2]
[426737879,1782769604000,-152.0,0.00012843,2]
[426737875,1782769604000,-151.0,0.00012843,2]
[426737882,1782769604000,-150.0,0.00012843,2]
[426737881,1782769604000,-150.0,0.00012843,2]
[426737883,1782769604000,-150.0,0.00012843,2]
[426737884,1782769604000,-150.0,0.00012843,2]
[426737886,1782769604000,-151.0,0.00012843,2]
[426737885,1782769604000,-151.0,0.00012843,2]
[426737887,1782769604000,-32.30150173,0.00012843,2]
[426737880,1782769604000,-152.0,0.00012843,2]
[426737888,1782769650000,800.0,0.000128,4]
[426737889,1782769652000,1600.0,0.000129,4]
[426737912,1782769832000,-151.0,0.00012843,2]
[426737913,1782769832000,-150.0,0.00012843,2]
[426737914,1782769832000,-170.70587535,0.00012904,2]
[426737915,1782769832000,-45.87871336,0.00012904,2]
[426737916,1782769832000,-1350.2689,0.00013005,2]
[426737917,1782769832000,-182.42091364,0.00013005,2]
[426737920,1782769832000,-79.56807049,0.00013099,2]
[426737922,1782769832000,-120.43192951,0.00013099,2]
[426737921,1782769832000,-300.0,0.00013099,2]
[426737908,1782769832000,-149.94950173,0.00012843,2]
[426737919,1782769832000,-500.0,0.00013099,2]
[426737924,1782769832000,-245.07992951,0.00013099,2]
[426737933,1782769832000,-500.0,0.00013099,2]
[426737918,1782769832000,-177.08377207,0.00013039,2]
[426737910,1782769832000,-150.0,0.00012843,2]
[426737905,1782769832000,-150.0,0.00012843,2]
[426737907,1782769832000,-151.0,0.00012843,2]
[426737894,1782769832000,-151.0,0.00012843,2]
[426737893,1782769832000,-119.69849827,0.00012843,2]
[426737896,1782769832000,-151.0,0.00012843,2]
[426737899,1782769832000,-153.0,0.00012843,2]
[426737898,1782769832000,-150.0,0.00012843,2]
[426737897,1782769832000,-153.0,0.00012843,2]
[426737911,1782769832000,-153.0,0.00012843,2]
[426737900,1782769832000,-151.0,0.00012843,2]
[426737904,1782769832000,-150.0,0.00012843,2]
[426737901,1782769832000,-151.0,0.00012843,2]
[426737902,1782769832000,-151.0,0.00012843,2]
[426737903,1782769832000,-151.0,0.00012843,2]
[426737906,1782769832000,-153.0,0.00012843,2]
[426737909,1782769832000,-1.05049827,0.00012843,2]
[426737895,1782769832000,-151.0,0.00012843,2]
[426737925,1782769832000,-500.0,0.00013099,2]
[426737923,1782769832000,-254.92007049,0.00013099,2]
[426737926,1782769832000,-500.0,0.00013099,2]
[426737947,1782769832000,-934.95,0.00013103,2]
[426737950,1782769832000,-152.0,0.00013104,2]
[426737949,1782769832000,-32064.14,0.00013103,2]
[426737951,1782769832000,-9999.99,0.00013104,2]
[426737955,1782769832000,-150.99,0.00013104,2]
[426737952,1782769832000,-9999.99,0.00013104,2]
[426737948,1782769832000,-268.14,0.00013103,2]
[426737953,1782769832000,-288.06016669,0.00013104,2]
[426737960,1782769832000,-76682.04469397,0.00013105,2]
[426737961,1782769832000,-10481.96161009,0.00013105,2]
[426737959,1782769832000,-1341.88,0.00013104,2]
[426737962,1782769832000,-499.1807737,0.00013105,2]
[426737963,1782769832000,-265.84622953,0.00013105,2]
[426737928,1782769832000,-500.0,0.00013099,2]
[426737954,1782769832000,-11.92983331,0.00013104,2]
[426737956,1782769832000,-199.94216669,0.00013104,2]
[426737958,1782769832000,-6782.62803331,0.00013104,2]
[426737944,1782769832000,-151.0,0.00013102,2]
[426737957,1782769832000,-258.4698,0.00013104,2]
[426737932,1782769832000,-226.03756562,0.00013099,2]
[426737930,1782769832000,-500.0,0.00013099,2]
[426737929,1782769832000,-500.0,0.00013099,2]
[426737931,1782769832000,-500.0,0.00013099,2]
[426737934,1782769832000,-25.21340235,0.00013099,2]
[426737936,1782769832000,-134.04331777,0.00013099,2]
[426737927,1782769832000,-500.0,0.00013099,2]
[426737935,1782769832000,-474.78659765,0.00013099,2]
[426737943,1782769832000,-500.0,0.00013099,2]
[426737940,1782769832000,-500.0,0.00013099,2]
[426737938,1782769832000,-500.0,0.00013099,2]
[426737945,1782769832000,-150.0,0.00013103,2]
[426737942,1782769832000,-382.05431826,0.00013099,2]
[426737937,1782769832000,-365.95668223,0.00013099,2]
[426737946,1782769832000,-190.71883282,0.00013103,2]
[426737987,1782769838000,-163.77,0.00013291,2]
[426737988,1782769838000,-500.0,0.00013698,2]
[426737989,1782769838000,-500.0,0.00013698,2]
[426737986,1782769838000,-165.0,0.00013264,2]
[426738002,1782769838000,-908.01,0.00013698,2]
[426737992,1782769838000,-500.0,0.00013698,2]
[426737991,1782769838000,-500.0,0.00013698,2]
[426737993,1782769838000,-500.0,0.00013698,2]
[426738003,1782769838000,-908.01,0.00013698,2]
[426737980,1782769838000,-151.0,0.00013203,2]
[426737978,1782769838000,-1852.42,0.00013105,2]
[426737985,1782769838000,-151.0,0.00013203,2]
[426737983,1782769838000,-151.0,0.00013203,2]
[426737981,1782769838000,-152.0,0.00013203,2]
[426737982,1782769838000,-150.0,0.00013203,2]
[426737979,1782769838000,-150.0,0.00013134,2]
[426737972,1782769838000,-152.0,0.00012843,2]
[426737974,1782769838000,-337.23389195,0.00013105,2]
[426737976,1782769838000,-1411733.73280076,0.00013105,2]
[426737977,1782769838000,-150.0,0.00013105,2]
[426737995,1782769838000,-500.0,0.00013698,2]
[426737984,1782769838000,-151.0,0.00013203,2]
[426737994,1782769838000,-500.0,0.00013698,2]
[426737990,1782769838000,-500.0,0.00013698,2]
[426738000,1782769838000,-500.0,0.00013698,2]
[426737996,1782769838000,-500.0,0.00013698,2]
[426738021,1782769838000,-886.0,0.0001447,2]
[426738017,1782769838000,-887.0,0.00014074,2]
[426738018,1782769838000,-250.0,0.00014127,2]
[426738019,1782769838000,-910.0,0.0001419,2]
[426738013,1782769838000,-656.92,0.00013698,2]
[426738016,1782769838000,-913.0,0.00013887,2]
[426738015,1782769838000,-428.66515356,0.00013856,2]
[426738014,1782769838000,-1000.0,0.00013699,2]
[426738012,1782769838000,-656.92,0.00013698,2]
[426738010,1782769838000,-656.92,0.00013698,2]
[426738020,1782769838000,-255.0,0.00014204,2]
[426738009,1782769838000,-656.92,0.00013698,2]
[426738005,1782769838000,-908.01,0.00013698,2]
[426738007,1782769838000,-908.01,0.00013698,2]
[426738008,1782769838000,-656.92,0.00013698,2]
[426738006,1782769838000,-908.01,0.00013698,2]
[426738004,1782769838000,-908.01,0.00013698,2]
[426738001,1782769838000,-500.0,0.00013698,2]
[426737999,1782769838000,-500.0,0.00013698,2]
[426737998,1782769838000,-500.0,0.00013698,2]
[426737997,1782769838000,-500.0,0.00013698,2]
[426738011,1782769838000,-656.92,0.00013698,2]
[426738063,1782769839000,-619.24,0.00014909,2]
[426738060,1782769839000,-500.0,0.0001487,2]
[426738068,1782769839000,-500.0,0.00016438,2]
[426738061,1782769839000,-908.0,0.0001487,2]
[426738055,1782769839000,-500.0,0.0001487,2]
[426738069,1782769839000,-214.36457203,0.00016438,2]
[426738059,1782769839000,-500.0,0.0001487,2]
[426738056,1782769839000,-500.0,0.0001487,2]
[426738057,1782769839000,-500.0,0.0001487,2]
[426738066,1782769839000,-501.0,0.00015783,2]
[426738058,1782769839000,-500.0,0.0001487,2]
[426738067,1782769839000,-500.0,0.00016438,2]
[426738074,1782769839000,-200.0,0.00017352,2]
[426738064,1782769839000,-501.0,0.00015,2]
[426738062,1782769839000,-500.0,0.00014909,2]
[426738071,1782769839000,-501.0,0.00016566,3]
[426738081,1782769839000,-166.66,0.00019405,2]
[426738072,1782769839000,-190.0,0.00016694,2]
[426738073,1782769839000,-501.0,0.00017349,4]
[426738070,1782769839000,-280.0,0.00016438,2]
[426738076,1782769839000,-501.0,0.00018133,4]
[426738075,1782769839000,-252.46,0.00017645,2]
[426738051,1782769839000,-500.0,0.0001487,2]
[426738079,1782769839000,-501.0,0.00018916,5]
[426738077,1782769839000,-166.66,0.00018252,2]
[426738065,1782769839000,-433.0,0.00015396,2]
[426738053,1782769839000,-500.0,0.0001487,2]
[426738041,1782769839000,-500.0,0.0001487,2]
[426738023,1782769839000,-500.0,0.00014827,2]
[426738022,1782769839000,-914.0,0.0001447,2]
[426738025,1782769839000,-150.0,0.00014831,2]
[426738035,1782769839000,-500.0,0.0001487,2]
[426738026,1782769839000,-231.84853459,0.00014842,2]
[426738024,1782769839000,-500.0,0.00014827,2]
[426738034,1782769839000,-906.0,0.00014843,2]
[426738027,1782769839000,-500.0,0.00014842,2]
[426738031,1782769839000,-500.0,0.00014842,2]
[426738033,1782769839000,-500.0,0.00014842,2]
[426738028,1782769839000,-500.0,0.00014842,2]
[426738029,1782769839000,-500.0,0.00014842,2]
[426738036,1782769839000,-500.0,0.0001487,2]
[426738078,1782769839000,-166.66,0.00018637,2]
[426738038,1782769839000,-500.0,0.0001487,2]
[426738040,1782769839000,-500.0,0.0001487,2]
[426738039,1782769839000,-500.0,0.0001487,2]
[426738044,1782769839000,-500.0,0.0001487,2]
[426738042,1782769839000,-500.0,0.0001487,2]
[426738043,1782769839000,-500.0,0.0001487,2]
[426738046,1782769839000,-500.0,0.0001487,2]
[426738045,1782769839000,-500.0,0.0001487,2]
[426738050,1782769839000,-500.0,0.0001487,2]
[426738047,1782769839000,-500.0,0.0001487,2]
[426738054,1782769839000,-500.0,0.0001487,2]
[426738048,1782769839000,-500.0,0.0001487,2]
[426738049,1782769839000,-633.6,0.0001487,2]
[426738080,1782769839000,-166.66,0.00019021,2]
[426738037,1782769839000,-279.13718034,0.0001487,2]
[426738083,1782769839000,-559.94595811,0.000195,2]
[426738112,1782769839000,-501.0,0.00020482,6]
[426738114,1782769839000,-150.0,0.00020547,2]
[426738110,1782769839000,-559.94595811,0.000203,2]
[426738113,1782769839000,-182.42091364,0.00020509,2]
[426738117,1782769839000,-151.0,0.00020922,2]
[426738120,1782769839000,-151.0,0.00020922,2]
[426738121,1782769839000,-151.0,0.00020922,2]
[426738122,1782769839000,-151.0,0.00020922,2]
[426738125,1782769839000,-171.0,0.00021,2]
[426738119,1782769839000,-151.0,0.00020922,2]
[426738124,1782769839000,-151.0,0.00020922,2]
[426738123,1782769839000,-151.0,0.00020922,2]
[426738115,1782769839000,-598.6,0.00020548,2]
[426738127,1782769839000,-158.0,0.00021,2]
[426738128,1782769839000,-350.0,0.00021,2]
[426738126,1782769839000,-235.0,0.00021,2]
[426738130,1782769839000,-162.0,0.00021,2]
[426738131,1782769839000,-208.57,0.00021058,2]
[426738136,1782769839000,-621.85,0.00021504,2]
[426738132,1782769839000,-500.0,0.00021252,2]
[426738135,1782769839000,-5947.43,0.00021273,2]
[426738133,1782769839000,-457.54746063,0.00021252,2]
[426738138,1782769839000,-150.0,0.00021918,2]
[426738134,1782769839000,-501.0,0.00021265,7]
[426738137,1782769839000,-5000.0,0.00021918,2]
[426738082,1782769839000,-1561.35027571,0.000195,2]
[426738129,1782769839000,-431.0,0.00021,2]
[426738111,1782769839000,-795.91401044,0.000203,2]
[426738052,1782769839000,-500.0,0.0001487,2]
[426738109,1782769839000,-1561.35027571,0.000203,2]
[426738116,1782769839000,-621.85,0.00020819,2]
[426738085,1782769839000,-795.91401044,0.000195,2]
[426738086,1782769839000,-501.0,0.00019699,6]
[426738087,1782769839000,-1561.35027571,0.000197,2]
[426738090,1782769839000,-795.91401044,0.000197,2]
[426738084,1782769839000,-192.08612595,0.000195,2]
[426738089,1782769839000,-192.08612595,0.000197,2]
[426738093,1782769839000,-559.94595811,0.000199,2]
[426738094,1782769839000,-192.08612595,0.000199,2]
[426738091,1782769839000,-166.66,0.00019789,2]
[426738092,1782769839000,-1561.35027571,0.000199,2]
[426738096,1782769839000,-169.0,0.0002,2]
[426738099,1782769839000,-166.0,0.0002,2]
[426738088,1782769839000,-559.94595811,0.000197,2]
[426738106,1782769839000,-192.08612595,0.000201,2]
[426738118,1782769839000,-151.0,0.00020922,2]
[426738108,1782769839000,-166.66,0.00020174,2]
[426738107,1782769839000,-795.91401044,0.000201,2]
[426738104,1782769839000,-1561.35027571,0.000201,2]
[426738105,1782769839000,-559.94595811,0.000201,2]
[426738098,1782769839000,-235.0,0.0002,2]
[426738103,1782769839000,-162.0,0.0002,2]
[426738100,1782769839000,-158.0,0.0002,2]
[426738101,1782769839000,-350.0,0.0002,2]
[426738097,1782769839000,-171.0,0.0002,2]
[426738095,1782769839000,-795.91401044,0.000199,2]
[426738102,1782769839000,-431.0,0.0002,2]
[426738190,1782769840000,-500.0,0.00024173,2]
[426738182,1782769840000,-171.0,0.00024,2]
[426738180,1782769840000,-1941.7897203,0.00023641,2]
[426738181,1782769840000,-2500.0,0.000239,8]
[426738179,1782769840000,-317335.2540646,0.00023641,2]
[426738171,1782769840000,-200.54081036,0.00023608,2]
[426738169,1782769840000,-190.2192597,0.00023608,2]
[426738165,1782769840000,-190.22323705,0.000236,2]
[426738178,1782769840000,-177.91429623,0.00023617,2]
[426738168,1782769840000,-153.45859495,0.000236,2]
[426738183,1782769840000,-235.0,0.00024,2]
[426738173,1782769840000,-177.39747537,0.00023608,2]
[426738184,1782769840000,-350.0,0.00024,2]
[426738192,1782769840000,-28860.28,0.00024174,2]
[426738188,1782769840000,-150.0,0.00024164,2]
[426738189,1782769840000,-500.0,0.00024173,2]
[426738186,1782769840000,-162.0,0.00024,2]
[426738187,1782769840000,-601.4,0.0002411,2]
[426738174,1782769840000,-164.19575741,0.00023608,2]
[426738191,1782769840000,-1715.1,0.00024174,2]
[426738202,1782769840000,-380.43851939,0.00024864,2]
[426738203,1782769840000,-401.08162071,0.00024864,2]
[426738194,1782769840000,-1000.0,0.00024658,2]
[426738193,1782769840000,-501.0,0.00024398,10]
[426738195,1782769840000,-325.25995013,0.00024856,2]
[426738199,1782769840000,-352.03424152,0.00024856,2]
[426738185,1782769840000,-431.0,0.00024,2]
[426738177,1782769840000,-501.0,0.00023614,9]
[426738162,1782769840000,-187.11836805,0.00023239,30]
[426738175,1782769840000,-176.128605,0.00023608,2]
[426738141,1782769840000,-600.0,0.00021918,2]
[426738140,1782769840000,-600.0,0.00021918,2]
[426738139,1782769840000,-600.0,0.00021918,2]
[426738143,1782769840000,-171.0,0.00022,2]
[426738153,1782769840000,-1666.23,0.00022466,2]
[426738142,1782769840000,-600.0,0.00021918,2]
[426738144,1782769840000,-235.0,0.00022,2]
[426738145,1782769840000,-159.0,0.00022,2]
[426738152,1782769840000,-687.32,0.00022466,2]
[426738147,1782769840000,-431.0,0.00022,2]
[426738148,1782769840000,-162.0,0.00022,2]
[426738151,1782769840000,-566.02,0.00022114,2]
[426738150,1782769840000,-501.0,0.00022048,8]
[426738146,1782769840000,-350.0,0.00022,2]
[426738149,1782769840000,-3648.12,0.00022,2]
[426738154,1782769840000,-2031.29,0.00022466,2]
[426738160,1782769840000,-162.0,0.00023,2]
[426738159,1782769840000,-431.0,0.00023,2]